bitfinex-derivatives/quotes_ETHF0:USTF0_20240923
["timestamp","ask_amount","ask_price","bid_price","bid_amount"]
[1727100751192,8.33266431,2660.1,2659.7,2.84]
[1727100751193,3.2078,2660.4,2659.7,2.84]
[1727100751394,2.89685115,2663.2,2660.7,0.37589]
[1727100751395,0.6891,2660.8,2660.7,0.37589]
[1727100751602,8.33266431,2660.9,2660.8,0.37588]
[1727100753496,8.33266431,2660.9,2660.0,3.2078]
[1727100753497,18.48015431,2660.9,2660.0,3.2078]
[1727100753798,8.33266431,2660.1,2660.0,0.37599]
[1727100753999,8.33266431,2660.1,2659.9,0.376]
[1727100754194,0.37596,2660.3,2659.9,0.376]
[1727100754195,8.33266431,2660.0,2659.9,0.376]
[1727100754697,8.33266431,2660.0,2659.8,0.37601]
[1727100754892,0.37597,2660.2,2659.8,0.37601]
[1727100755092,0.37597,2660.2,2659.4,8.94017]
[1727100755093,8.33266431,2659.9,2659.4,8.94017]
[1727100755297,8.33266431,2659.7,2659.6,0.37605]
[1727100756196,8.33266431,2659.7,2659.4,0.37607]
[1727100756401,8.33266431,2659.5,2659.0,3.2078]
[1727100756699,3.2078,2659.7,2659.2,0.3761]
[1727100756700,1.00156,2659.6,2659.2,0.3761]
[1727100756894,4.20936,2659.6,2659.2,0.3761]
[1727100757095,8.33266431,2659.3,2659.2,0.3761]
[1727100757590,0.94004,2659.9,2659.7,0.37603]
[1727100757591,3.2078,2659.9,2659.7,0.37603]
[1727100757796,3.2078,2659.9,2659.5,0.37606]
[1727100757797,8.33266431,2659.6,2659.5,0.37606]
[1727100758396,8.33266431,2659.6,2659.1,0.9403]
[1727100758601,3.2078,2659.9,2659.6,0.37604]
[1727100758796,3.2078,2659.9,2659.8,0.37602]
[1727100758997,11.54046431,2659.9,2659.8,0.37602]
[1727100759200,8.33266431,2659.9,2659.8,0.37602]
[1727100760093,8.33266431,2659.9,2659.8,1.31608]
[1727100760298,0.6255,2660.5,2660.1,0.37597]
[1727100760502,8.33266431,2660.2,2659.7,2.84]
[1727100760703,1.00143,2660.5,2660.2,0.37596]
[1727100761092,8.33266431,2660.3,2660.2,0.37596]
[1727100762608,8.33266431,2660.3,2659.7,6.0478]
[1727100762792,8.33266431,2660.0,2659.7,6.0478]
[1727100762995,7.76847094,2660.0,2659.7,6.0478]
[1727100763195,7.76847094,2660.0,2659.9,0.37601]
[1727100763704,7.76847094,2660.0,2659.9,1.31603]
[1727100763899,3.8362,2660.8,2660.7,0.37589]
[1727100764297,11.60467094,2660.8,2660.7,0.37589]
[1727100764499,7.76847094,2660.8,2660.7,0.37589]
[1727100764811,0.6865,2661.3,2660.7,2.84]
[1727100765001,7.76847094,2660.8,2660.7,2.84]
[1727100765304,7.76847094,2660.8,2660.7,0.37589]
[1727100766606,1.06231,2661.3,2661.0,0.37585]
[1727100766805,1.06231,2661.3,2660.4,6.98763]
[1727100766806,7.76847094,2661.1,2660.9,0.37586]
[1727100767004,7.76847094,2660.7,2660.4,6.0478]
[1727100767307,7.76847094,2660.7,2660.6,0.37591]
[1727100767511,0.93936,2661.8,2660.4,6.98763]
[1727100767512,3.2078,2662.6,2661.6,0.37576]
[1727100767698,0.93904,2662.7,2661.6,0.37577]
[1727100767699,6.94478094,2661.7,2661.6,0.37577]
[1727100768100,0.6877,2662.1,2661.5,6.0478]
[1727100768299,0.6877,2662.1,2662.0,0.37571]
[1727100768599,7.63248094,2662.1,2662.0,0.37571]
[1727100768906,7.63248094,2662.1,2661.9,3.58352]
[1727100769103,6.94478094,2662.0,2661.9,3.58352]
[1727100769708,6.94478094,2662.0,2661.9,3.2078]
[1727100770009,6.94478094,2662.0,2661.7,0.37574]
[1727100770207,0.6877,2662.1,2661.7,0.37574]
[1727100770407,6.94478094,2661.9,2661.5,6.0478]
[1727100770612,6.94478094,2661.9,2661.8,0.37574]
[1727100770911,0.6877,2662.1,2661.9,0.37571]
[1727100771108,6.94478094,2661.9,2661.5,6.98725]
[1727100771312,6.94478094,2661.9,2661.8,3.2078]
[1727100771504,6.94478094,2661.9,2661.8,3.58354]
[1727100772217,6.94478094,2661.9,2661.5,2.84]
[1727100772218,6.94478094,2661.9,2661.5,6.0478]
[1727100772406,6.94478094,2661.9,2660.3,2.06772]
[1727100772407,6.94478094,2661.6,2661.4,0.37579]
[1727100772712,6.94478094,2661.5,2661.4,0.37579]
[1727100773114,6.94478094,2661.5,2661.2,0.37581]
[1727100773303,6.94478094,2661.2,2661.1,6.42364]
[1727100775211,6.94478094,2661.2,2661.1,3.58364]
[1727100775412,6.94478094,2661.2,2661.1,0.37584]
[1727100775931,6.94478094,2661.2,2660.5,0.6886]
[1727100775932,0.37587,2660.9,2660.5,0.37592]
[1727100776211,6.94478094,2660.6,2660.3,6.0478]
[1727100776417,0.37587,2660.9,2660.5,0.37591]
[1727100776709,3.2078,2661.0,2660.4,0.37593]
[1727100776710,6.94478094,2660.5,2660.4,0.37593]
[1727100776911,0.8847,2661.0,2660.9,0.37586]
[1727100777411,7.04240094,2661.0,2660.9,0.37586]
[1727100777811,7.04240094,2661.0,2660.3,6.0478]
[1727100778112,0.9343,2661.1,2660.6,0.93977]
[1727100778412,6.15770094,2660.7,2660.6,0.37591]
[1727100778608,0.9343,2661.1,2661.0,0.37585]
[1727100778804,7.09200094,2661.1,2661.0,0.37585]
[1727100779215,7.09200094,2661.1,2660.9,0.37586]
[1727100779429,1.31014,2661.1,2660.8,0.37588]
[1727100779717,6.15770094,2660.7,2660.6,0.3759]
[1727100780017,6.15770094,2660.7,2660.3,6.0478]
[1727100780215,6.15770094,2660.4,2660.3,6.42375]
[1727100780607,6.15770094,2660.4,2660.3,7.36363]
[1727100781014,6.15770094,2660.4,2660.3,6.42375]
[1727100782019,1.87392,2661.1,2661.0,0.37585]
[1727100782020,0.9343,2661.1,2661.0,0.37585]
[1727100782220,0.9343,2661.1,2660.3,15.807]
[1727100782221,5.36689094,2660.8,2660.3,6.0478]
[1727100782411,5.36689094,2660.8,2660.7,0.37589]
[1727100782612,1.31015,2661.1,2660.8,0.37587]
[1727100782811,0.3759,2660.7,2660.4,0.37593]
[1727100783009,5.36689094,2660.5,2660.3,3.58374]
[1727100783317,5.36689094,2660.4,2659.9,6.0478]
[1727100783514,5.36689094,2660.1,2660.0,0.37599]
[1727100784316,5.36689094,2660.1,2660.0,1.31598]
[1727100784623,5.36689094,2660.1,2660.0,0.37599]
[1727100785120,5.74287094,2660.1,2659.8,0.37601]
[1727100785315,5.36689094,2659.8,2659.6,3.2078]
[1727100785521,5.36689094,2659.8,2659.7,0.37603]
[1727100786219,1.25777,2660.2,2660.1,0.37598]
[1727100786220,0.8818,2660.2,2660.1,0.37598]
[1727100786427,0.8818,2660.2,2659.6,4.1479]
[1727100786428,6.24869094,2660.2,2660.0,0.37598]
[1727100786619,0.8818,2660.2,2660.0,0.37598]
[1727100786820,5.36689094,2660.1,2660.0,0.37598]
[1727100787324,5.74287094,2660.1,2659.8,0.37601]
[1727100787620,5.74287094,2660.1,2659.8,0.37602]
[1727100787621,0.376,2660.0,2659.8,0.37602]
[1727100787920,3.2078,2660.1,2659.2,3.2078]
[1727100787921,5.36689094,2659.9,2659.2,3.2078]
[1727100788120,0.93999,2660.0,2659.4,0.37607]
[1727100788319,5.36689094,2659.5,2659.4,0.37607]
[1727100789322,5.74296094,2659.5,2659.2,3.2078]
[1727100789522,5.36689094,2659.3,2659.2,3.5839]
[1727100790020,5.36689094,2659.3,2659.2,0.3761]
[1727100791925,5.36689094,2659.3,2659.1,0.37611]
[1727100792127,5.36689094,2659.2,2658.9,3.2078]
[1727100792430,0.37615,2658.9,2658.8,0.43455148]
[1727100792723,5.74304094,2658.9,2658.8,0.43455148]
[1727100792931,11.74304094,2658.9,2658.8,0.43455148]
[1727100795133,11.36689094,2658.9,2658.8,0.43455148]
[1727100795327,5.36689094,2658.9,2658.8,0.37616]
[1727100795721,5.74304094,2658.9,2658.7,0.37617]
[1727100795923,5.36689094,2658.6,2658.3,2.9066]
[1727100796124,3.58394,2659.0,2658.4,1.31677]
[1727100796125,5.36689094,2658.5,2658.4,1.31677]
[1727100796441,5.36689094,2658.5,2658.4,0.37622]
[1727100797228,5.36689094,2658.5,2658.2,0.3766]
[1727100797526,0.3762,2658.5,2658.3,0.3766]
[1727100797730,5.74311094,2658.4,2658.3,0.3766]
[1727100797924,8.95091094,2658.4,2658.3,0.3766]
[1727100798326,0.37623,2658.3,2658.1,0.37626]
[1727100798522,8.57469094,2658.4,2657.5,4.1486551]
[1727100798523,5.36689094,2658.2,2657.5,4.1486551]
[1727100798723,4.61329094,2657.6,2657.5,1.3171951]
[1727100798931,4.61329094,2657.6,2657.5,0.9408551]
[1727100799435,4.61329094,2657.6,2657.5,1.3171951]
[1727100799933,4.61329094,2657.6,2657.5,0.9408551]
[1727100800428,4.61329094,2657.6,2657.5,1.3171951]
[1727100800834,4.61329094,2657.6,2657.5,0.9408551]
[1727100801025,4.61329094,2657.6,2657.5,1.3171951]
[1727100803527,4.61329094,2657.6,2657.5,0.9408551]
[1727100804636,4.98962094,2657.6,2657.5,0.9408551]
[1727100804830,4.61329094,2657.6,2657.5,1.3171951]
[1727100805439,4.61329094,2657.6,2657.5,0.37634]
[1727100807642,4.61329094,2657.6,2657.0,4.14882]
[1727100807945,4.61329094,2657.2,2657.1,0.3764]
[1727100808131,3.2078,2657.7,2657.1,0.3764]
[1727100808444,4.61329094,2657.2,2657.1,0.3764]
[1727100808643,0.37641,2657.1,2656.4,4.34148735]
[1727100808834,4.61329094,2656.9,2656.8,0.37644]
[1727100809135,0.37639,2657.2,2656.5,3.2078]
[1727100809136,4.61329094,2656.8,2656.5,3.2078]
[1727100809336,4.61329094,2656.7,2656.6,0.37647]
[1727100809536,4.61329094,2656.7,2656.2,5.0554]
[1727100809841,4.61329094,2656.5,2656.4,0.3765]
[1727100810630,4.61329094,2656.5,2656.4,1.31776]
[1727100811039,3.2078,2656.9,2656.8,0.37644]
[1727100811262,4.61329094,2656.9,2656.8,0.37644]
[1727100812341,4.61329094,2656.9,2656.7,0.37645]
[1727100812529,4.61329094,2656.9,2656.6,0.37646]
[1727100812530,3.58424,2656.9,2656.6,0.37646]
[1727100812729,4.61329094,2656.7,2656.2,5.9967]
[1727100812928,4.61329094,2656.3,2656.2,6.37323]
[1727100813128,4.61329094,2656.3,2656.2,7.31456]
[1727100813129,3.67165572,2656.3,2656.2,7.31456]
[1727100813332,3.67165572,2656.3,2656.2,6.37323]
[1727100813541,3.67165572,2656.3,2656.2,2.22413]
[1727100813738,3.67165572,2656.3,2656.2,0.37653]
[1727100814331,3.67165572,2656.3,2656.2,1.31786]
[1727100814537,3.58423,2656.9,2656.7,0.37645]
[1727100814839,3.2078,2656.9,2656.8,0.37644]
[1727100815048,3.2078,2656.9,2656.4,0.94124]
[1727100815049,0.37642,2657.0,2656.7,0.37645]
[1727100815239,3.67165572,2656.8,2656.7,0.37645]
[1727100815441,3.67165572,2656.8,2656.2,0.94133]
[1727100815738,3.67165572,2656.3,2656.0,4.14917]
[1727100816038,3.67165572,2656.1,2656.0,4.14917]
[1727100816443,3.67165572,2656.1,2656.0,3.58436]
[1727100816946,0.9191,2656.7,2656.6,0.37647]
[1727100817245,0.9191,2656.7,2656.4,0.37649]
[1727100817541,3.67165572,2656.2,2656.1,1.31791]
[1727100817747,0.9191,2656.7,2656.6,0.37647]
[1727100817938,3.67165572,2656.7,2656.6,0.37647]
[1727100818647,3.67165572,2656.7,2656.6,1.31766]
[1727100818842,3.67165572,2656.7,2656.6,0.37647]
[1727100820237,4.04812572,2656.7,2656.5,0.37648]
[1727100820441,3.67165572,2656.3,2656.1,0.94135]
[1727100820650,3.67165572,2656.2,2656.1,1.31789]
[1727100822256,3.67165572,2656.2,2656.1,2.25926]
[1727100822443,0.37646,2656.7,2656.6,0.37646]
[1727100822640,4.04811572,2656.7,2656.6,0.37646]
[1727100822949,3.67165572,2656.7,2656.6,0.37647]
[1727100823952,3.67165572,2656.7,2656.1,0.9652]
[1727100824152,3.67165572,2656.7,2655.8,0.9751]
[1727100824153,3.67165572,2656.2,2655.8,0.9751]
[1727100824352,3.67165572,2655.9,2655.4,3.2078]
[1727100824655,0.37659,2655.8,2655.5,0.37663]
[1727100824855,0.37659,2655.8,2655.3,0.9311]
[1727100824856,3.67165572,2655.5,2655.4,0.37663]
[1727100825147,5.7378,2656.0,2655.3,0.37665]
[1727100825148,3.10648279,2655.4,2655.3,0.37665]
[1727100825351,3.10648279,2655.4,2655.3,0.37662]
[1727100826252,3.2078,2655.7,2655.6,0.37658]
[1727100826558,3.47116,2656.5,2655.4,0.94152]
[1727100826559,3.58425,2656.5,2655.4,0.94152]
[1727100826753,3.2078,2656.5,2656.1,0.3765]
[1727100826954,3.2078,2656.5,2655.8,0.94138]
[1727100827151,3.10648279,2656.3,2656.1,3.2078]
[1727100827347,3.10648279,2656.3,2656.2,0.37649]
[1727100831056,0.9405,2656.6,2656.5,0.37645]
[1727100831456,4.04698279,2656.6,2656.0,3.2078]
[1727100831651,0.9405,2656.6,2656.4,0.37645]
[1727100831957,0.9405,2656.6,2656.0,3.2078]
[1727100831958,3.10648279,2656.3,2656.2,0.37649]
[1727100832653,4.1832,2657.0,2656.9,0.37639]
[1727100832654,0.9754,2657.0,2656.9,0.37639]
[1727100833157,4.08188279,2657.0,2656.9,0.37639]
[1727100833351,0.3764,2656.9,2656.6,0.37643]
[1727100833551,1.35179,2657.0,2656.6,0.37643]
[1727100833851,3.10648279,2656.7,2656.4,0.37645]
[1727100834057,6.31428279,2656.6,2655.3,3.3958]
[1727100834255,6.31428279,2656.6,2656.1,0.37651]
[1727100834256,3.10648279,2656.2,2656.1,0.37651]
[1727100834458,0.9147,2656.5,2656.3,0.37648]
[1727100834459,3.10648279,2656.4,2656.3,0.37648]
[1727100835150,3.10648279,2656.4,2656.3,1.31768]
[1727100835349,3.10648279,2656.4,2656.3,0.37648]
[1727100836462,3.10648279,2656.4,2655.9,3.2078]
[1727100836655,5.7378,2656.7,2655.7,0.9414]
[1727100836656,3.10648279,2656.0,2655.7,0.9414]
[1727100836857,3.10648279,2656.0,2655.9,3.2078]
[1727100837155,3.10648279,2656.0,2655.9,3.58433]
[1727100838554,3.10648279,2656.0,2655.9,4.52567]
[1727100839057,3.10648279,2656.0,2655.9,5.46701]
[1727100839254,3.2078,2656.7,2656.5,0.37645]
[1727100839255,3.58423,2656.7,2656.5,0.37645]
[1727100839468,3.10648279,2656.6,2656.5,0.37645]
[1727100839863,3.10648279,2656.6,2656.4,0.37645]
[1727100840163,3.10648279,2656.4,2656.3,0.9412]
[1727100840466,3.10648279,2656.5,2656.4,1.31763]
[1727100841062,3.10648279,2656.5,2656.4,0.37646]
[1727100841263,3.10648279,2656.5,2656.4,1.31763]
[1727100841479,3.2078,2657.1,2656.4,9.7648]
[1727100841667,3.10648279,2657.1,2657.0,1.31733]
[1727100841869,3.10648279,2657.1,2657.0,4.52513]
[1727100842367,0.8861,2657.6,2657.5,0.37631]
[1727100842558,3.99258279,2657.6,2657.5,0.37631]
[1727100842764,3.99258279,2657.6,2657.0,3.2078]
[1727100842963,3.10648279,2657.1,2657.0,3.58418]
[1727100843870,0.8861,2657.6,2657.0,4.17251644]
[1727100844073,0.8861,2657.6,2657.5,0.37631]
[1727100844369,0.8861,2657.6,2657.4,0.37631]
[1727100844564,0.8861,2657.6,2657.5,0.37631]
[1727100844770,1.2624,2657.6,2657.4,0.37632]
[1727100845166,3.10648279,2657.5,2657.4,0.37632]
[1727100847071,3.10648279,2657.5,2657.0,3.2078]
[1727100847270,3.10648279,2657.2,2657.0,3.2078]
[1727100847466,0.37635,2657.2,2657.1,0.37635]
[1727100847773,0.37635,2657.2,2657.0,3.2078]
[1727100847774,3.48284279,2657.1,2657.0,0.37638]
[1727100847967,3.10648279,2657.1,2657.0,0.37638]
[1727100850366,3.10648279,2657.1,2657.0,1.31733]
[1727100850767,0.8861,2657.6,2657.5,0.37631]
[1727100851076,0.37632,2657.5,2657.3,0.37632]
[1727100851378,3.10648279,2657.4,2657.3,0.37632]
[1727100851780,3.10648279,2657.4,2657.0,0.37637]
[1727100852069,3.10648279,2657.1,2656.5,0.97439471]
[1727100852271,3.2078,2656.9,2656.3,0.97439471]
[1727100852467,3.2078,2656.9,2656.3,1.35087471]
[1727100852468,3.10648279,2656.4,2656.3,1.35087471]
[1727100852667,3.10648279,2656.4,2656.3,0.37648]
[1727100852867,4.1247,2656.8,2656.7,0.37642]
[1727100853078,4.1247,2656.8,2656.4,0.37646]
[1727100853079,3.10648279,2656.5,2656.4,0.37646]
[1727100853277,4.50111,2656.8,2656.2,4.18219471]
[1727100853576,3.10648279,2656.3,2656.2,4.55868471]
[1727100853774,3.10648279,2656.3,2656.2,3.58429]
[1727100856074,4.1247,2656.8,2656.2,3.2078]
[1727100856270,3.10648279,2656.4,2656.3,0.37648]
[1727100856468,3.10648279,2656.7,2656.3,6.9412]
[1727100856673,3.10648279,2656.7,2656.6,0.37643]
[1727100856977,3.2078,2657.2,2657.1,0.37636]
[1727100857179,3.10648279,2657.2,2657.1,0.37636]
[1727100857680,3.10648279,2657.2,2656.8,4.18799126]
[1727100857874,3.10648279,2656.9,2656.8,3.58421]
[1727100858071,3.10648279,2656.9,2656.7,0.37641]
[1727100858268,3.10648279,2656.8,2656.7,0.37641]
[1727100859274,4.1255,2657.5,2656.9,0.37638]
[1727100859582,3.10648279,2656.7,2656.6,1.35662126]
[1727100859884,3.2078,2657.2,2657.1,0.37636]
[1727100860069,3.10648279,2657.0,2656.7,0.98019126]
[1727100860471,3.10648279,2657.0,2656.9,0.37639]
[1727100860879,4.50181,2657.5,2656.9,0.37639]
[1727100861082,0.37632,2657.4,2657.1,0.37635]
[1727100861279,0.37632,2657.4,2656.4,6.09771943]
[1727100861280,3.10648279,2656.8,2656.6,0.98019126]
[1727100861485,3.10648279,2656.5,2656.4,1.83805207]
[1727100861678,2.16493088,2656.5,2656.4,4.56339409]
[1727100862378,2.28987,2657.1,2656.8,0.3764]
[1727100862979,2.16493088,2656.9,2656.8,0.3764]
[1727100863992,0.9534,2657.1,2657.0,0.37638]
[1727100864477,3.11833088,2657.1,2657.0,0.37638]
[1727100865174,3.11833088,2657.1,2656.9,0.37638]
[1727100865375,3.11833088,2657.1,2656.6,3.2078]
[1727100865376,2.16493088,2656.7,2656.6,3.2078]
[1727100865582,2.16493088,2656.7,2656.6,3.58423]
[1727100866077,2.54135088,2656.7,2656.6,3.2078]
[1727100866286,2.54135088,2656.7,2656.3,1.46159207]
[1727100866287,2.16493088,2656.7,2656.3,0.97913409]
[1727100866577,2.16493088,2656.4,2656.3,0.37648]
[1727100868380,0.37652,2656.0,2655.8,0.37654]
[1727100868572,2.16493088,2655.9,2655.8,0.37654]
[1727100868774,2.54146088,2655.9,2655.7,0.37655]
[1727100868989,0.37653,2655.9,2655.7,0.37655]
[1727100869178,2.16493088,2655.8,2655.7,0.37655]
[1727100869383,2.16493088,2655.8,2655.3,0.97913409]
[1727100869576,3.58436,2655.8,2655.5,0.37659]
[1727100869783,3.58436,2655.8,2655.2,1.99213409]
[1727100869784,2.16493088,2655.5,2655.4,0.3766]
[1727100870884,2.16493088,2655.5,2655.0,1.01913409]
[1727100870885,5.37273088,2655.5,2655.0,1.01913409]
[1727100871080,2.16493088,2655.1,2655.0,0.41665]
[1727100871498,2.16493088,2655.1,2655.0,0.04]
[1727100872078,2.16493088,2655.1,2655.0,0.41666]
[1727100872281,2.16493088,2655.1,2655.0,0.04]
[1727100872476,2.16493088,2655.1,2655.0,0.41666]
[1727100872779,2.16493088,2655.1,2655.0,0.04]
[1727100873383,2.54158088,2655.1,2655.0,0.04]
[1727100873590,3.64518088,2655.1,2655.0,0.04]
[1727100875387,12.47633088,2655.1,2654.3,4.14969]
[1727100875588,2.16493088,2654.7,2654.6,0.9418]
[1727100875888,2.16493088,2654.7,2654.6,0.37672]
[1727100878688,4.3114,2655.1,2655.0,0.37666]
[1727100878885,3.2078,2655.1,2655.0,0.37666]
[1727100879089,5.37273088,2655.1,2655.0,0.37666]
[1727100879284,5.37273088,2655.1,2654.6,4.14959]
[1727100879285,2.54159088,2655.1,2654.9,0.37667]
[1727100879592,2.54159088,2655.1,2654.6,3.2078]
[1727100879593,2.54163088,2654.7,2654.6,3.2078]
[1727100879982,2.16493088,2654.7,2654.6,3.58452]
[1727100880291,2.16493088,2654.7,2654.3,3.2078]
[1727100880489,2.16493088,2654.4,2654.3,3.2078]
[1727100880694,2.16493088,2654.4,2654.3,3.58456]
[1727100880991,2.16493088,2654.4,2653.8,4.14987]
[1727100881194,2.16493088,2654.0,2653.9,0.37682]
[1727100881490,2.16493088,2653.9,2653.6,1.0399]
[1727100881692,2.16493088,2653.7,2653.6,0.37686]
[1727100882888,1.0964,2654.0,2653.9,0.37682]
[1727100883400,3.26133088,2654.0,2653.9,0.37682]
[1727100884288,2.16493088,2654.0,2653.9,0.37682]
[1727100884687,1.058,2654.3,2653.7,0.94212]
[1727100884899,2.16493088,2654.3,2654.2,0.37678]
[1727100885698,2.16493088,2654.3,2653.8,3.2078]
[1727100885896,5.7378,2654.5,2653.8,3.2078]
[1727100885897,2.16493088,2654.1,2654.0,0.3768]
[1727100886093,1.59943411,2654.1,2654.0,0.3768]
[1727100887094,1.59943411,2654.1,2653.9,0.37681]
[1727100887290,1.59943411,2653.7,2653.4,3.2078]
[1727100887492,1.59943411,2653.7,2653.6,0.37686]
[1727100887797,1.0206,2654.0,2653.9,0.37682]
[1727100888097,2.62003411,2654.0,2653.9,0.37682]
[1727100888303,2.62003411,2654.0,2653.7,3.58463]
[1727100888304,2.99684411,2654.0,2653.7,3.58463]
[1727100888596,1.59943411,2653.7,2653.4,3.2078]
[1727100888795,1.59943411,2653.7,2653.6,0.37686]
[1727100889104,1.59943411,2653.6,2653.4,3.2078]
[1727100889288,1.59943411,2653.6,2653.5,0.37687]
[1727100889799,1.59943411,2653.6,2653.4,0.37688]
[1727100889800,1.97629411,2653.6,2653.4,0.37688]
[1727100889992,2.53,2653.8,2653.4,0.37688]
[1727100890304,1.59943411,2653.5,2653.4,0.37688]
[1727100890800,1.0206,2654.0,2653.4,6.9766]
[1727100891101,1.0206,2654.0,2653.8,0.37682]
[1727100891305,1.59943411,2653.7,2653.4,3.2078]
[1727100891492,1.59943411,2653.7,2653.6,0.37686]
[1727100893593,1.59943411,2653.7,2653.4,3.2078]
[1727100893594,4.12943411,2653.7,2653.3,0.3769]
[1727100893796,1.59943411,2653.4,2653.3,0.3769]
[1727100893990,0.37691,2653.3,2653.1,3.2078]
[1727100894190,1.59943411,2653.2,2653.1,0.37693]
[1727100894396,1.97635411,2653.2,2653.0,0.37694]
[1727100894602,1.0523,2653.3,2653.0,0.37694]
[1727100894795,1.59943411,2653.1,2653.0,0.37694]
[1727100895201,1.59943411,2653.1,2653.0,1.31931]
[1727100895395,3.2078,2653.5,2653.4,0.37689]
[1727100895596,1.59943411,2653.3,2653.2,0.3769]
[1727100895804,1.59943411,2653.4,2653.0,0.94235]
[1727100895997,1.59943411,2653.4,2653.3,0.3769]
[1727100896203,1.0791,2653.7,2653.6,0.37686]
[1727100896699,2.67853411,2653.7,2653.6,0.37686]
[1727100897204,3.2078,2653.8,2653.7,0.37685]
[1727100897503,4.80723411,2653.8,2653.7,0.37685]
[1727100897896,1.59943411,2653.8,2653.7,0.37685]
[1727100899492,1.59943411,2653.8,2653.4,3.2078]
[1727100899691,1.59943411,2653.5,2653.4,3.58469]
[1727100899995,1.59943411,2653.5,2653.1,4.2728]
[1727100900200,1.59943411,2653.3,2653.2,0.37692]
[1727100900792,1.59943411,2653.3,2653.2,1.31922]
[1727100900997,1.59943411,2653.3,2653.2,0.37692]
[1727100901408,0.37696,2652.9,2652.6,0.377]
[1727100901705,0.9423,2653.2,2652.4,3.2078]
[1727100901706,3.2078,2653.0,2652.4,3.2078]
[1727100901898,1.59943411,2653.2,2653.1,0.37693]
[1727100902096,5.2697,2653.5,2653.0,0.37695]
[1727100902411,5.2697,2653.5,2653.4,0.37689]
[1727100902412,1.59943411,2653.5,2653.4,0.37689]
[1727100902611,1.59943411,2653.5,2653.4,3.58469]
[1727100902796,1.0801,2653.8,2653.7,0.37685]
[1727100902996,1.59943411,2653.7,2653.5,0.94219]
[1727100903198,3.2078,2653.9,2653.6,0.94216]
[1727100903199,1.59943411,2653.8,2653.6,0.94216]
[1727100903501,1.59943411,2653.8,2653.5,1.1058]
[1727100903502,1.59943411,2653.8,2653.7,1.31897]
[1727100903705,1.0801,2654.4,2654.3,0.37676]
[1727100903898,1.0801,2654.4,2653.7,9.58465]
[1727100903899,1.59943411,2654.1,2654.0,0.3768]
[1727100904099,1.59943411,2653.8,2653.7,3.2078]
[1727100904306,0.37688,2653.5,2653.1,3.2078]
[1727100904511,5.74932411,2653.8,2653.2,0.37691]
[1727100904512,1.59943411,2653.3,2653.2,0.37691]
[1727100905099,2.1119,2653.7,2653.6,0.37686]
[1727100905301,1.59943411,2653.6,2653.5,0.37687]
[1727100905902,1.59943411,2653.6,2653.2,1.1075]
[1727100906100,2.1119,2653.7,2653.5,0.37687]
[1727100906299,2.48875,2653.7,2653.4,0.37688]
[1727100906602,1.59943411,2653.3,2653.2,0.37692]
[1727100907308,2.1119,2653.7,2653.2,3.7688]
[1727100907511,2.1119,2653.7,2653.1,3.2078]
[1727100907710,1.59943411,2653.2,2653.1,3.58473]
[1727100908211,1.59943411,2653.2,2653.1,4.52707]
[1727100908411,2.1119,2653.7,2653.5,0.37686]
[1727100908608,1.59943411,2653.3,2653.1,3.2078]
[1727100908915,1.59943411,2653.4,2653.1,4.15014]
[1727100909207,2.1119,2653.7,2653.6,0.37686]
[1727100909404,2.1119,2653.7,2653.1,3.2078]
[1727100909405,4.08818411,2653.7,2653.1,3.2078]
[1727100909607,4.08818411,2653.7,2653.4,0.37689]
[1727100909608,1.59943411,2653.5,2653.4,0.37689]
[1727100909806,2.1119,2653.7,2653.4,0.37689]
[1727100910004,2.1119,2653.7,2653.6,0.37686]
[1727100910005,1.59943411,2653.7,2653.6,0.37686]
[1727100911709,1.59943411,2653.7,2653.5,0.37687]
[1727100911912,1.59943411,2653.3,2653.2,0.37692]
[1727100912215,1.59943411,2653.2,2653.1,3.58473]
[1727100912715,1.59943411,2653.2,2652.8,0.37697]
[1727100912912,1.59943411,2652.9,2652.6,3.2078]
[1727100913114,1.0816,2653.1,2652.6,3.2078]
[1727100913115,1.59943411,2652.7,2652.6,0.377]
[1727100914704,1.0816,2653.1,2653.0,0.37695]
[1727100915107,1.0507,2653.3,2653.2,0.37692]
[1727100915415,1.59943411,2653.2,2653.1,0.37692]
[1727100915616,1.59943411,2653.2,2653.0,0.37694]
[1727100915816,1.59943411,2653.2,2652.7,1.075]
[1727100916022,1.0507,2653.3,2653.2,0.37692]
[1727100916224,0.94186,2654.5,2653.4,0.9422]
[1727100916415,0.94186,2654.5,2653.5,5.4346]
[1727100916416,1.59943411,2653.8,2653.5,5.4346]
[1727100916626,2.1587,2654.3,2653.6,0.94216]
[1727100916928,2.1587,2654.3,2653.5,5.4346]
[1727100916929,0.3768,2654.1,2653.7,0.37684]
[1727100917133,0.37681,2654.0,2653.5,5.4346]
[1727100917336,0.37684,2653.8,2653.5,3.2078]
[1727100917629,4.12943411,2654.0,2653.1,5.28663409]
[1727100917831,0.37685,2653.7,2653.4,3.2078]
[1727100918033,1.59943411,2653.7,2653.4,3.2078]
[1727100918239,1.59943411,2653.7,2653.5,0.37687]
[1727100918428,1.59943411,2653.7,2653.4,3.2078]
[1727100918626,1.59943411,2653.7,2653.6,0.37686]
[1727100918934,1.59943411,2653.7,2653.4,3.2078]
[1727100919124,1.59943411,2653.7,2653.4,3.58468]
[1727100919125,1.0173,2653.6,2653.4,3.58468]
[1727100919329,2.1236,2653.6,2653.5,0.37687]
[1727100919652,2.1236,2653.6,2653.0,3.2078]
[1727100919653,3.72303411,2653.6,2653.0,3.2078]
[1727100919939,3.72303411,2653.6,2652.6,1.94878943]
[1727100919940,1.0171,2653.5,2652.7,0.94248]
[1727100920131,0.37689,2653.4,2653.1,0.37693]
[1727100920327,5.7378,2653.4,2652.7,3.2078]
[1727100920630,0.37693,2653.2,2652.7,3.2078]
[1727100920932,0.37691,2653.3,2652.7,3.2078]
[1727100921133,7.33723411,2653.4,2652.7,3.58478]
[1727100921333,2.53,2653.1,2652.7,3.2078]
[1727100921539,1.48325,2653.0,2652.7,0.37698]
[1727100921830,1.0173,2652.9,2652.8,0.37697]